bitfinex-derivatives/quotes_BNBF0:USTF0_20250509
["timestamp","ask_amount","ask_price","bid_price","bid_amount"]
[1746799457592,0.26745722,642.54,641.16,1.00093461]
[1746799457996,0.26745722,642.53,641.16,1.00093461]
[1746799458196,0.26745722,642.52,641.16,1.00093461]
[1746799458493,0.26745722,642.51,641.16,1.00093461]
[1746799458898,0.26745722,642.5,641.16,1.00093461]
[1746799459197,0.26745722,642.49,641.16,1.00093461]
[1746799459499,0.26745722,642.48,641.16,1.00093461]
[1746799459897,0.26745722,642.47,641.16,1.00093461]
[1746799460198,0.26745722,642.46,641.16,1.00093461]
[1746799460497,0.26745722,642.45,641.16,1.00093461]
[1746799460692,0.732,642.65,641.16,1.00093461]
[1746799461098,0.27119489,642.44,641.16,1.00093461]
[1746799461798,0.26746693,642.43,641.16,1.00093461]
[1746799462099,0.26746693,642.42,641.16,1.00093461]
[1746799462293,0.60546693,642.42,641.16,1.00093461]
[1746799462498,0.26746693,642.41,641.16,1.00093461]
[1746799462900,0.26746693,642.4,641.16,1.00093461]
[1746799463298,0.26746693,642.39,641.16,1.00093461]
[1746799463600,0.26746693,642.41,641.16,1.00093461]
[1746799463996,0.27124245,642.38,641.16,1.00093461]
[1746799464498,0.26746693,642.37,641.16,1.00093461]
[1746799465599,0.26746693,642.36,641.16,1.00093461]
[1746799465901,0.26746693,642.37,641.16,1.00093461]
[1746799466398,0.26746693,642.36,641.16,1.00093461]
[1746799466605,0.26746693,642.36,641.16,1.73493461]
[1746799466904,0.26746693,642.35,641.16,1.73493461]
[1746799467303,0.26746693,642.34,641.16,1.73493461]
[1746799467705,0.26746693,642.33,641.16,1.73493461]
[1746799467999,0.26746693,642.32,641.16,1.73493461]
[1746799468408,0.26746693,642.31,641.16,1.73493461]
[1746799468807,0.26746693,642.3,641.16,1.73493461]
[1746799469102,0.26746693,642.29,641.16,1.73493461]
[1746799469501,0.26746693,642.28,641.16,1.73493461]
[1746799469809,0.26746693,642.27,641.16,1.04593461]
[1746799470207,0.26746693,642.26,641.16,1.04593461]
[1746799470407,0.26746693,642.25,641.16,1.04593461]
[1746799470809,0.26746693,642.24,641.16,1.04593461]
[1746799471006,0.2712784,642.36,641.16,1.04593461]
[1746799471311,0.26767809,642.35,641.16,1.04593461]
[1746799471707,0.26767809,642.34,641.16,1.04593461]
[1746799471905,0.26767809,642.33,641.16,1.04593461]
[1746799472211,0.26767809,642.35,641.16,1.04593461]
[1746799473311,0.26767809,642.34,641.16,1.04593461]
[1746799473613,0.26767809,642.33,641.16,1.04593461]
[1746799474007,0.26767809,642.32,641.16,1.04593461]
[1746799474308,0.26767809,642.31,641.16,1.04593461]
[1746799474512,0.26767809,642.3,641.16,1.04593461]
[1746799475011,0.26767809,642.29,641.16,1.04593461]
[1746799475411,0.26767809,642.28,641.16,1.04593461]
[1746799475814,0.26767809,642.27,641.16,1.04593461]
[1746799476010,0.26767809,642.26,641.16,1.04593461]
[1746799476417,0.26767809,642.25,641.16,1.04593461]
[1746799476717,0.2712784,642.36,641.16,1.04593461]
[1746799477012,0.26761574,642.35,641.16,1.04593461]
[1746799477317,0.26761574,642.34,641.16,1.04593461]
[1746799477715,0.26761574,642.33,641.16,1.04593461]
[1746799477917,0.26761574,642.32,641.16,1.04593461]
[1746799478418,0.26761574,642.31,641.16,1.04593461]
[1746799478721,0.26761574,642.3,641.16,1.04593461]
[1746799479114,0.26761574,642.29,641.16,1.04593461]
[1746799479417,0.26761574,642.28,641.16,1.04593461]
[1746799479720,0.26761574,642.27,641.16,1.04593461]
[1746799480120,0.26761574,642.26,641.16,1.04593461]
[1746799480419,0.26761574,642.25,641.16,1.04593461]
[1746799480820,0.26761574,642.24,641.16,1.04593461]
[1746799481019,0.26761574,642.23,641.16,1.04593461]
[1746799481622,2.03334999,642.42,641.16,1.04593461]
[1746799481623,0.26761574,642.22,641.16,1.04593461]
[1746799481816,0.26761574,642.21,641.16,1.04593461]
[1746799482121,0.26761574,642.2,641.16,1.04593461]
[1746799482521,0.26761574,642.56,641.16,1.04593461]
[1746799482921,0.26761574,642.55,641.16,1.04593461]
[1746799483122,0.27123928,642.19,641.16,1.04593461]
[1746799484019,0.26761574,642.18,641.16,1.04593461]
[1746799484622,0.26761574,642.17,641.16,1.04593461]
[1746799485124,0.27123928,642.19,641.16,1.04593461]
[1746799485317,0.26755425,642.16,641.16,1.04593461]
[1746799485622,0.26755425,642.15,641.16,1.04593461]
[1746799486019,0.26755425,642.14,641.16,1.04593461]
[1746799486323,0.26755425,642.13,641.16,1.04593461]
[1746799486619,0.26755425,642.12,641.16,1.04593461]
[1746799486926,0.27123928,642.19,641.16,1.04593461]
[1746799487220,0.2675413,642.18,641.16,1.04593461]
[1746799487623,0.2675413,642.17,641.16,1.04593461]
[1746799487919,0.2675413,642.16,641.16,1.04593461]
[1746799488324,0.2675413,642.15,641.16,1.04593461]
[1746799488521,0.2675413,642.14,641.16,1.04593461]
[1746799488825,0.2675413,642.13,641.16,1.04593461]
[1746799489125,0.2675413,642.12,641.16,1.04593461]
[1746799489426,0.2675413,642.11,641.16,1.04593461]
[1746799489627,0.2675413,642.11,641.16,0.31193461]
[1746799489822,0.2675413,642.1,641.16,0.31193461]
[1746799490127,0.2675413,642.15,641.16,0.31193461]
[1746799493626,0.2675413,642.53,641.16,0.31193461]
[1746799493930,0.2675413,642.52,641.16,0.31193461]
[1746799494331,0.2675413,642.51,641.16,0.31193461]
[1746799494632,0.2675413,642.5,641.16,0.31193461]
[1746799494933,0.2675413,642.49,641.16,0.31193461]
[1746799495432,0.2675413,642.48,641.16,0.31193461]
[1746799495734,0.2675413,642.47,641.16,0.31193461]
[1746799496134,0.2675413,642.46,641.16,0.31193461]
[1746799496434,0.2675413,642.45,641.16,0.31193461]
[1746799496636,2.03334999,642.43,641.16,0.31193461]
[1746799497230,0.2675413,642.42,641.16,0.31193461]
[1746799497636,0.2675413,642.41,641.16,0.31193461]
[1746799498031,0.2675413,642.4,641.16,0.31193461]
[1746799498235,2.03334999,642.38,641.16,0.31193461]
[1746799498731,0.2675413,642.37,641.16,0.31193461]
[1746799499131,0.2675413,642.36,641.16,0.31193461]
[1746799500136,0.2675413,642.35,641.16,0.31193461]
[1746799500632,0.2675413,642.34,641.16,0.31193461]
[1746799500832,0.2675413,642.33,641.16,0.31193461]
[1746799501236,0.2675413,642.32,641.16,0.31193461]
[1746799501539,0.53882499,642.32,641.16,0.31193461]
[1746799501732,0.2675413,642.31,641.16,0.31193461]
[1746799502039,0.2675413,642.3,641.16,0.31193461]
[1746799502434,0.2675413,642.29,641.16,0.31193461]
[1746799502738,0.2675413,642.28,641.16,0.31193461]
[1746799503133,0.2675413,642.27,641.16,0.31193461]
[1746799503638,0.2675413,642.26,641.16,0.31193461]
[1746799503839,0.2675413,642.25,641.16,0.31193461]
[1746799504238,0.2675413,642.24,641.16,0.31193461]
[1746799504541,2.03334999,642.04,641.16,0.31193461]
[1746799505039,0.2675413,642.03,641.16,0.31193461]
[1746799506534,0.2675413,642.34,641.16,0.31193461]
[1746799506939,0.27129638,642.02,641.16,0.31193461]
[1746799507639,0.26762469,642.01,641.16,0.31193461]
[1746799508351,0.26762469,642.0,641.16,0.31193461]
[1746799508640,0.26762469,641.99,641.16,0.31193461]
[1746799509033,0.26762469,642.01,641.16,0.31193461]
[1746799509535,0.26762469,642.0,641.16,0.31193461]
[1746799509935,0.27129638,642.02,641.16,0.31193461]
[1746799509936,0.26762469,641.99,641.16,0.31193461]
[1746799510240,0.26762469,641.98,641.16,0.31193461]
[1746799510639,0.26762469,641.97,641.16,0.31193461]
[1746799511036,0.26762469,641.96,641.16,0.31193461]
[1746799511441,0.26762469,641.95,641.16,0.31193461]
[1746799511741,0.26762469,641.94,641.16,0.31193461]
[1746799512039,0.26762469,641.93,641.16,0.31193461]
[1746799512541,0.26762469,641.92,641.16,0.31193461]
[1746799512838,0.26762469,641.91,641.16,0.31193461]
[1746799513242,0.26762469,641.94,641.16,0.31193461]
[1746799514245,0.26762469,641.93,641.16,0.31193461]
[1746799514439,2.03334999,642.13,641.16,0.31193461]
[1746799514641,2.03334999,642.34,641.16,0.31193461]
[1746799514642,2.03334999,642.21,641.16,0.31193461]
[1746799514840,0.2676171,642.12,641.16,0.31193461]
[1746799515046,0.2676171,642.11,641.16,0.31193461]
[1746799515445,2.03334999,642.21,641.16,0.31193461]
[1746799515848,0.26764575,642.2,641.16,0.31193461]
[1746799516146,0.26764575,642.19,641.16,0.31193461]
[1746799516545,0.26764575,642.18,641.16,0.31193461]
[1746799516948,0.26764575,642.17,641.16,0.31193461]
[1746799517345,2.03334999,642.43,641.16,0.31193461]
[1746799517346,0.26764575,642.16,641.16,0.31193461]
[1746799518050,0.26764575,642.15,641.16,0.31193461]
[1746799518450,0.26764575,642.14,641.16,0.90193461]
[1746799518751,0.26764575,642.13,641.16,0.90193461]
[1746799519150,0.26764575,642.12,641.16,0.90193461]
[1746799519445,0.26764575,642.11,641.16,0.90193461]
[1746799519845,0.26764575,642.1,641.16,0.90193461]
[1746799520347,0.26764575,642.09,641.16,0.90193461]
[1746799520550,0.26764575,642.08,641.16,0.90193461]
[1746799521049,0.26764575,642.07,641.16,0.90193461]
[1746799521754,0.26764575,642.06,641.16,0.90193461]
[1746799521947,0.26764575,642.05,641.16,0.90193461]
[1746799522251,0.26764575,642.04,641.16,0.90193461]
[1746799522551,0.26764575,642.03,641.16,0.90193461]
[1746799522751,0.26764575,642.02,641.16,0.90193461]
[1746799523052,0.26764575,642.01,641.16,0.90193461]
[1746799523246,0.26764575,642.0,641.16,0.90193461]
[1746799523553,0.26764575,641.99,641.16,0.90193461]
[1746799523848,0.26764575,641.98,641.16,0.90193461]
[1746799524047,0.26764575,641.97,641.16,0.90193461]
[1746799524447,0.26764575,641.96,641.16,0.90193461]
[1746799524645,0.26764575,641.95,641.16,0.90193461]
[1746799525451,0.26764575,641.94,641.16,0.90193461]
[1746799525846,0.26764575,641.93,641.16,0.90193461]
[1746799526350,0.26764575,641.92,641.16,0.90193461]
[1746799526751,0.26764575,641.91,641.16,0.90193461]
[1746799526952,2.03334999,642.18,641.16,0.90193461]
[1746799527153,0.26768593,642.17,641.16,0.90193461]
[1746799527351,0.27133022,641.91,641.16,0.90193461]
[1746799528053,0.26773361,641.9,641.16,0.90193461]
[1746799528453,0.26773361,641.89,641.16,0.90193461]
[1746799528852,0.26773361,641.88,641.16,0.90193461]
[1746799529253,0.26773361,641.87,641.16,0.90193461]
[1746799529453,0.26773361,641.86,641.16,0.90193461]
[1746799529754,0.26773361,641.85,641.16,0.90193461]
[1746799530053,0.26773361,641.84,641.16,0.90193461]
[1746799530447,0.26773361,641.83,641.16,0.90193461]
[1746799530855,0.27133022,641.91,641.16,0.90193461]
[1746799531654,0.26780209,641.9,641.16,0.90193461]
[1746799531951,0.26780209,641.89,641.16,0.90193461]
[1746799532350,0.26780209,641.88,641.16,0.90193461]
[1746799532654,0.26780209,641.87,641.16,0.90193461]
[1746799532954,0.26780209,641.86,641.16,0.90193461]
[1746799533352,0.26780209,641.85,641.16,0.90193461]
[1746799533655,0.26780209,641.84,641.16,0.90193461]
[1746799533954,0.26780209,641.83,641.16,0.90193461]
[1746799534254,0.26780209,641.82,641.16,0.90193461]
[1746799534557,0.26780209,641.81,641.16,0.90193461]
[1746799534856,0.26780209,641.8,641.16,0.90193461]
[1746799535156,0.26780209,641.79,641.16,0.90193461]
[1746799535559,0.26780209,641.78,641.16,0.90193461]
[1746799535949,0.26780209,641.77,641.16,0.90193461]
[1746799536156,0.26780209,641.76,641.16,0.90193461]
[1746799536352,0.26780209,641.75,641.16,0.90193461]
[1746799536656,0.26780209,641.74,641.16,0.90193461]
[1746799536857,0.26780209,641.73,641.16,0.90193461]
[1746799537160,0.26780209,641.72,641.16,0.90193461]
[1746799537357,0.26780209,641.71,641.16,0.90193461]
[1746799537557,0.26780209,641.7,641.16,0.90193461]
[1746799538959,0.26780209,641.69,641.16,0.90193461]
[1746799539455,0.26780209,641.68,641.16,0.90193461]
[1746799539862,0.27140322,641.83,641.16,0.90193461]
[1746799540160,0.26780718,641.82,641.16,0.90193461]
[1746799540455,0.26780718,641.81,641.16,0.90193461]
[1746799540855,0.26780718,641.8,641.16,0.90193461]
[1746799541463,0.26780718,641.79,641.16,0.90193461]
[1746799541764,0.53921252,641.79,641.16,0.90193461]
[1746799542162,0.26780718,641.78,641.16,0.90193461]
[1746799542762,0.26780718,641.77,641.16,0.90193461]
[1746799543062,0.26780718,641.76,641.16,0.90193461]
[1746799543464,0.26780718,641.75,641.16,0.90193461]
[1746799543763,0.26780718,641.74,641.16,0.90193461]
[1746799544156,0.26780718,641.73,641.16,0.90193461]
[1746799544462,0.26780718,641.72,641.16,0.90193461]
[1746799544956,0.26780718,641.71,641.16,0.90193461]
[1746799545457,0.26780718,641.7,641.16,0.90193461]
[1746799545660,0.26780718,641.69,641.16,0.90193461]
[1746799546061,0.26780718,641.68,641.16,0.90193461]
[1746799546263,0.26780718,641.67,641.16,0.90193461]
[1746799546563,0.26780718,641.66,641.16,0.90193461]
[1746799546863,0.27141593,641.74,641.16,0.90193461]
[1746799547168,0.2678188,641.73,641.16,0.90193461]
[1746799547466,0.2678188,641.72,641.16,0.90193461]
[1746799547761,0.2678188,641.71,641.16,0.90193461]
[1746799548165,0.2678188,641.7,641.16,0.90193461]
[1746799548467,0.2678188,641.71,641.16,0.90193461]
[1746799550461,0.2678188,641.88,641.16,0.90193461]
[1746799551062,0.2678188,641.87,641.16,0.90193461]
[1746799551562,0.27140428,641.86,641.16,0.90193461]
[1746799551767,0.53922308,641.86,641.16,0.90193461]
[1746799552068,0.2678188,641.85,641.16,0.90193461]
[1746799556467,0.2678188,642.13,641.16,0.90193461]
[1746799556867,0.27139264,641.84,641.16,0.90193461]
[1746799557267,0.2678188,641.83,641.16,0.90193461]
[1746799558272,0.2678188,641.82,641.16,0.90193461]
[1746799558572,0.2678188,641.81,641.16,0.90193461]
[1746799558970,0.27139264,641.84,641.16,0.90193461]
[1746799559571,0.26778916,641.83,641.16,0.90193461]
[1746799560171,0.27139264,641.84,641.16,0.90193461]
[1746799560572,0.26779256,641.83,641.16,0.90193461]
[1746799561572,0.26779256,641.82,641.16,0.90193461]
[1746799561968,0.26779256,641.81,641.16,0.90193461]
[1746799562973,0.26779256,641.8,641.16,0.90193461]
[1746799563274,0.26779256,641.79,641.16,0.90193461]
[1746799563675,0.26779256,641.78,641.16,0.90193461]
[1746799563976,0.26779256,641.77,641.16,0.90193461]
[1746799564575,0.27140428,641.83,641.16,0.90193461]
[1746799564875,0.2679008,641.82,641.16,0.90193461]
[1746799565068,0.2679008,641.82,641.16,0.59]
[1746799565272,0.2679008,641.81,641.16,0.59]
[1746799565473,0.27148686,641.76,641.16,0.59]
[1746799565874,0.2679008,641.75,641.16,0.59]
[1746799566075,2.03334999,641.67,641.16,0.59]
[1746799566577,0.26792123,641.66,641.16,0.59]
[1746799566877,0.26792123,641.65,641.16,0.31846866]
[1746799567276,0.26792123,641.64,641.16,0.31846866]
[1746799567578,0.26792123,641.63,641.16,0.31846866]
[1746799567981,0.26792123,641.62,641.16,0.31846866]
[1746799568178,0.26792123,641.61,641.16,0.31846866]
[1746799568479,0.26792123,641.6,641.16,0.31846866]
[1746799568774,0.26792123,641.59,641.16,0.31846866]
[1746799569079,0.26792123,641.58,641.16,0.31846866]
[1746799569881,0.27154829,641.57,641.16,0.31846866]
[1746799570181,0.26792123,641.56,641.16,0.31846866]
[1746799574385,0.27152605,641.55,641.16,0.31846866]
[1746799575085,0.26792123,641.54,641.16,0.31846866]
[1746799575289,0.26792123,641.54,640.61,0.792]
[1746799575490,0.26792123,641.54,640.63,0.31219268]
[1746799576591,0.26792123,641.53,640.63,0.31219268]
[1746799577090,0.26792123,641.52,640.63,0.31219268]
[1746799577588,0.26792123,641.54,640.63,0.31219268]
[1746799578189,0.26792123,641.53,640.63,0.31219268]
[1746799578891,0.26792123,641.54,640.63,0.31219268]
[1746799579787,0.27152605,641.55,640.63,0.31219268]
[1746799580187,0.26776306,641.54,640.63,0.31219268]
[1746799580387,0.27147309,641.54,640.63,0.31219268]
[1746799580893,0.26776306,641.53,640.63,0.31219268]
[1746799581793,0.729,641.52,640.63,0.31219268]
[1746799582187,0.26776306,641.51,640.63,0.31219268]
[1746799583290,0.27151863,641.5,640.63,0.31219268]
[1746799583590,0.26776306,641.49,640.63,0.31219268]
[1746799585088,0.27151863,641.5,640.63,0.31219268]
[1746799585089,0.26776306,641.48,640.63,0.31219268]
[1746799585391,0.26776306,641.47,640.63,0.31219268]
[1746799585791,0.26776306,641.46,640.63,0.31219268]
[1746799586094,0.26776306,641.45,640.63,0.31219268]
[1746799586393,0.26776306,641.44,640.63,0.31219268]
[1746799589395,0.27149109,641.43,640.63,0.31219268]
[1746799589693,0.26776306,641.42,640.63,0.31219268]
[1746799591796,0.346,641.41,640.63,0.31219268]
[1746799592296,0.26776306,641.4,640.63,0.31219268]
[1746799592493,0.53926051,641.4,640.63,0.31219268]
[1746799592996,0.26776306,641.39,640.63,0.31219268]
[1746799595400,0.27152393,641.38,640.63,0.31219268]
[1746799595999,0.26776306,641.37,640.63,0.31219268]
[1746799596299,0.27152393,641.38,640.63,0.31219268]
[1746799596599,0.2677507,641.36,640.63,0.31219268]
[1746799596897,0.2677507,641.37,640.63,0.31219268]
[1746799598298,0.2677507,641.4,640.63,0.31219268]
[1746799598494,0.27151969,641.36,640.63,0.31219268]
[1746799599095,0.2677507,641.35,640.63,0.31219268]
[1746799604302,0.27151334,641.34,640.63,0.31219268]
[1746799604802,0.2677507,641.33,640.63,0.31219268]
[1746799608306,1.0937507,641.33,640.63,0.31219268]
[1746799608806,0.2677507,641.32,640.63,0.31219268]
[1746799610409,0.2714858,641.31,640.63,0.31219268]
[1746799610609,0.2677507,641.3,640.63,0.31219268]
[1746799610809,0.2714858,641.31,640.63,0.31219268]
[1746799611309,0.26771987,641.3,640.63,0.31219268]
[1746799613603,0.27149215,641.29,640.63,0.31219268]
[1746799613805,0.26771987,641.28,640.63,0.31219268]
[1746799615610,0.26771987,641.28,640.64,1.16878526]
[1746799615804,0.26771987,641.28,640.63,0.31219268]
[1746799615805,0.26771987,641.28,640.65,0.31218293]
[1746799616111,0.26771987,641.28,640.66,1.16857513]
[1746799616312,0.27149215,641.29,640.67,0.31217319]
[1746799616612,0.27149215,641.29,640.68,1.16857513]
[1746799617108,0.27149215,641.29,640.69,1.16857513]
[1746799617413,0.27149215,641.29,640.7,1.73257513]
[1746799618112,0.826,641.33,640.71,1.16857513]
[1746799618614,0.826,641.33,640.72,1.16857513]
[1746799619313,0.826,641.33,640.73,1.16857513]
[1746799619712,0.826,641.33,640.74,1.16857513]
[1746799620516,0.826,641.33,640.75,1.16857513]
[1746799620818,0.826,641.33,640.76,1.16857513]
[1746799621016,0.826,641.33,640.77,1.16857513]
[1746799621511,0.826,641.33,640.78,1.16857513]
[1746799621914,0.826,641.33,640.79,1.16857513]
[1746799622114,0.826,641.33,640.8,1.16857513]
[1746799622311,0.826,641.33,640.81,1.16857513]
[1746799622811,0.826,641.33,640.82,1.16857513]
[1746799623115,0.826,641.33,640.83,1.16857513]
[1746799623316,0.345,641.4,640.83,1.16857513]
[1746799623516,0.345,641.4,640.84,1.16857513]
[1746799623716,0.345,641.4,640.85,1.16857513]
[1746799623916,0.345,641.4,640.86,1.16857513]
[1746799624213,0.345,641.4,640.87,1.16857513]
[1746799625016,0.345,641.4,640.7,0.564]
[1746799627018,0.677,641.39,640.7,0.564]
[1746799631325,0.94842969,641.39,640.7,0.564]
[1746799632229,0.94842969,641.39,640.71,0.3121537]
[1746799632730,0.26758168,641.38,640.71,0.3121537]
[1746799634128,0.94842969,641.39,640.71,0.3121537]
[1746799634935,0.2676099,641.38,640.71,0.3121537]
[1746799635533,0.2676099,641.38,640.72,0.62]
[1746799636232,0.677,641.39,640.72,0.62]
[1746799636427,0.677,641.39,640.73,0.31214396]
[1746799641937,0.345,641.38,640.73,0.31214396]
[1746799646344,0.27143815,641.37,640.73,0.31214396]
[1746799648843,0.476,641.36,640.73,0.31214396]
[1746799649049,0.74362758,641.36,640.73,0.31214396]
[1746799649548,0.26762758,641.35,640.73,0.31214396]
[1746799653253,0.476,641.36,640.73,0.31214396]
[1746799655352,0.74744133,641.36,640.73,0.31214396]
[1746799656549,0.74744133,641.36,640.74,0.571]
[1746799658054,0.476,641.36,640.74,0.571]
[1746799658554,0.74744133,641.36,640.74,0.571]
[1746799660451,0.74744133,641.36,640.75,0.31213421]
[1746799662655,0.74744133,641.36,640.76,0.745]
[1746799662957,0.2676238,641.35,640.76,0.745]
[1746799663150,0.74744133,641.36,640.77,0.31212447]
[1746799663856,0.26763189,641.35,640.77,0.31212447]
[1746799664452,0.27145403,641.34,640.77,0.31212447]
[1746799665457,0.26764648,641.33,640.77,0.31212447]
[1746799667356,0.27145403,641.32,640.77,0.31212447]
[1746799667561,0.26764648,641.31,640.77,0.31212447]
[1746799670459,0.27145403,641.3,640.77,0.31212447]
[1746799670659,0.26764936,641.29,640.77,0.31212447]
[1746799673457,0.2714858,641.28,640.77,0.31212447]
[1746799674258,0.2714858,641.28,640.77,0.86612447]
[1746799676057,0.344,641.4,640.77,0.86612447]
[1746799676261,0.26774859,641.39,640.77,0.86612447]
[1746799676462,0.27149957,641.27,640.77,0.86612447]
[1746799676862,0.26775482,641.26,640.77,0.86612447]
[1746799677161,0.27151439,641.26,640.77,0.86612447]
[1746799677358,0.26775482,641.25,640.77,0.86612447]
[1746799677966,0.26775482,641.25,640.77,1.58512447]
[1746799682366,0.26775482,641.39,640.77,1.58512447]
[1746799682566,0.27152075,641.24,640.77,1.58512447]
[1746799682767,0.26775482,641.23,640.77,1.58512447]
[1746799682971,0.923,641.4,640.77,1.58512447]
[1746799683170,0.27152075,641.23,640.77,1.58512447]
[1746799683373,0.26780453,641.22,640.77,1.58512447]
[1746799683573,0.26780453,641.39,640.77,1.58512447]
[1746799683776,0.27152075,641.22,640.77,1.58512447]
[1746799684072,0.26780453,641.21,640.77,1.58512447]
[1746799684275,0.5393041,641.21,640.77,1.58512447]
[1746799684576,0.26780453,641.2,640.77,1.58512447]
[1746799685476,0.27149957,641.19,640.77,1.58512447]
[1746799685772,0.26780453,641.18,640.77,1.58512447]
[1746799688276,0.923,641.4,640.77,1.58512447]
[1746799688476,0.27148898,641.17,640.77,1.58512447]
[1746799688670,0.26776304,641.16,640.77,1.58512447]
[1746799688868,0.26776304,641.39,640.77,1.58512447]
[1746799689075,0.27148898,641.16,640.77,1.58512447]
[1746799689275,0.26776304,641.15,640.77,1.58512447]
[1746799689475,0.26776304,641.39,640.77,1.58512447]
[1746799689672,0.27148898,641.15,640.77,1.58512447]
[1746799689973,0.923,641.4,640.77,1.58512447]
[1746799690174,0.27148898,641.14,640.77,1.58512447]
[1746799690374,0.26774773,641.13,640.77,1.58512447]
[1746799690777,0.27148474,641.13,640.77,1.58512447]
[1746799690978,0.26774773,641.12,640.77,1.58512447]
[1746799691376,0.27148474,641.11,640.77,1.58512447]
[1746799691674,0.26774773,641.1,640.77,1.58512447]
[1746799692878,0.27146356,641.21,640.77,1.58512447]
[1746799693277,0.26771654,641.2,640.77,1.58512447]
[1746799697381,0.26771654,641.39,640.77,1.58512447]
[1746799697573,0.27148474,641.19,640.77,1.58512447]
[1746799697779,0.26771654,641.18,640.77,1.58512447]
[1746799698082,0.27149533,641.18,640.77,1.58512447]
[1746799698278,0.26771654,641.17,640.77,1.58512447]
[1746799698783,0.27149533,641.18,640.77,1.58512447]
[1746799698981,0.26776115,641.17,640.77,1.58512447]
[1746799703380,0.27151651,641.16,640.77,1.58512447]
[1746799704486,0.26776115,641.15,640.77,1.58512447]
[1746799706383,0.26776115,641.39,640.77,1.58512447]
[1746799706582,0.27151651,641.14,640.77,1.58512447]
[1746799706788,0.26776115,641.39,640.77,1.58512447]
[1746799707081,0.27151651,641.13,640.77,1.58512447]
[1746799707287,0.26776115,641.39,640.77,1.58512447]
[1746799707481,0.26776115,641.12,640.77,1.58512447]
[1746799707882,0.26776115,641.39,640.77,1.58512447]
[1746799708185,0.27151651,641.38,640.77,1.58512447]
[1746799708486,0.26776115,641.37,640.77,1.58512447]
[1746799709486,0.27151651,641.36,640.77,1.58512447]
[1746799710482,0.26776115,641.35,640.77,1.58512447]
[1746799714789,0.26776115,641.35,640.77,1.03112447]
[1746799715290,0.26776115,641.39,640.77,1.03112447]
[1746799715489,0.27155677,641.34,640.77,1.03112447]
[1746799715792,0.26776115,641.33,640.77,1.03112447]
[1746799717695,0.26776115,641.32,640.77,1.03112447]
[1746799717888,0.26776115,641.32,640.77,0.31212447]
[1746799718196,0.26776115,641.31,640.77,0.31212447]
[1746799718395,0.26776115,641.3,640.77,0.31212447]
[1746799718696,0.26776115,641.29,640.77,0.31212447]
[1746799719491,0.26776115,641.28,640.77,0.31212447]
[1746799719795,0.26776115,641.27,640.77,0.31212447]
[1746799720197,0.26776115,641.26,640.77,0.31212447]
[1746799720996,0.26776115,641.25,640.77,0.31212447]
[1746799721396,0.27160022,641.24,640.77,0.31212447]
[1746799721599,0.53936137,641.24,640.77,0.31212447]
[1746799721897,0.26776115,641.23,640.77,0.31212447]
[1746799722199,0.26776115,641.22,640.77,0.31212447]
[1746799722392,0.26776115,641.21,640.77,0.31212447]
[1746799722898,0.26776115,641.2,640.77,0.31212447]
[1746799723198,0.26776115,641.19,640.77,0.31212447]
[1746799723599,0.26776115,641.18,640.77,0.31212447]
[1746799723997,0.26776115,641.17,640.77,0.31212447]
[1746799724293,0.26776115,641.16,640.77,0.31212447]
[1746799724998,0.26776115,641.15,640.77,0.31212447]
[1746799725394,0.26776115,641.14,640.77,0.31212447]
[1746799725698,0.26776115,641.13,640.77,0.31212447]
[1746799725899,0.26776115,641.12,640.77,0.31212447]
[1746799726401,0.26776115,641.11,640.77,0.31212447]
[1746799726798,0.26776115,641.1,640.77,0.31212447]
[1746799727302,0.26776115,641.09,640.77,0.31212447]
[1746799727705,0.26776115,641.08,640.77,0.31212447]
[1746799727904,0.26776115,641.07,640.77,0.31212447]
[1746799728203,0.26776115,641.23,640.77,0.31212447]
[1746799728505,0.26776115,641.22,640.77,0.31212447]
[1746799728805,0.26776115,641.21,640.77,0.31212447]
[1746799729100,0.26776115,641.2,640.77,0.31212447]
[1746799729505,0.26776115,641.19,640.77,0.31212447]
[1746799729901,0.26776115,641.18,640.77,0.31212447]
[1746799730502,0.26776115,641.23,640.77,0.31212447]
[1746799730802,0.27160022,641.24,640.77,0.31212447]
[1746799731002,0.26795974,641.22,640.77,0.31212447]
[1746799731306,0.26795974,641.21,640.77,0.31212447]
[1746799731607,0.26795974,641.2,640.77,0.31212447]
[1746799731902,0.2715981,641.2,640.77,0.31212447]
[1746799732105,0.26795974,641.19,640.77,0.31212447]
[1746799733306,0.923,641.4,640.77,0.31212447]
[1746799733506,0.26795692,641.18,640.77,0.31212447]
[1746799733805,0.26795692,641.39,640.77,0.31212447]
[1746799734200,0.2715981,641.17,640.77,0.31212447]
[1746799734405,0.26795692,641.16,640.77,0.31212447]
[1746799734901,0.27157478,641.38,640.77,0.31212447]
[1746799735200,0.26795692,641.15,640.77,0.31212447]
[1746799735604,0.27157478,641.38,640.77,0.31212447]
[1746799735805,0.26791111,641.14,640.77,0.31212447]
[1746799736006,0.26791111,641.37,640.77,0.31212447]
[1746799736408,0.53948589,641.36,640.77,0.31212447]
[1746799736709,0.26791111,641.35,640.77,0.31212447]
[1746799737008,0.26791111,641.34,640.77,0.31212447]
[1746799737311,0.26791111,641.35,640.77,0.31212447]